[Event "21st Sants Open 2019"]
[Site "Cotxeres de Sants"]
[Date "2019.08.24"]
[Round "2.19"]
[White "Trenchs Lopez, Christian"]
[Black "Salvador Gomez, Jesus Francisco"]
[Result "0-1"]
[ECO "C00"]
[WhiteElo "1499"]
[BlackElo "1639"]
[Annotator "NA"]
[PlyCount "124"]
[EventDate "2019.08.22"]
[EventType "swiss"]
[EventCountry "ESP"]
[SourceTitle "playchess.com"]
[Source "ChessBase"]
[SourceQuality "1"]
[TimeControl "40/5400+30:1800+30"]

1. e4 {[%emt 0:00:00]} e6 {[%emt 0:00:02]} 2. d3 {[%emt 0:00:04]} d5 {[%emt 0:01:01]} 3. Nd2 {[%emt 0:00:29]} a6 {[%emt 0:01:15]} 4. Ngf3 {[%emt 0:00:45]} Nd7 {[%emt 0:00:41]} 5. g3 {[%emt 0:00:40]} Be7 {[%emt 0:02:12]} 6. Bg2 {[%emt 0:00:49]} Bf6 {[%emt 0:00:41]} 7. O-O {[%emt 0:00:33]} c6 {[%emt 0:00:31]} 8. Re1 {[%emt 0:00:43]} Qc7 {[%emt 0:00:56]} 9. c3 {[%emt 0:01:14]} g6 {[%emt 0:00:58]} 10. Nf1 {[%emt 0:01:23]} Ne7 {[%emt 0:00:44]} 11. Bh6 {[%emt 0:06:37]} Ng8 {[%emt 0:01:34]} 12. Bc1 {[%emt 0:08:23]} h6 {[%emt 0:01:32]} 13. Qe2 {[%emt 0:00:39]} Ne7 {[%emt 0:00:24]} 14. Ne3 {[%emt 0:04:58]} O-O {[%emt 0:00:10]} 15. Ng4 {[%emt 0:00:14]} h5 {[%emt 0:01:23]} 16. Nxf6+ {[%emt 0:01:18]} Nxf6 {[%emt 0:00:03]} 17. e5 {[%emt 0:01:45]} Nh7 {[%emt 0:01:14]} 18. h4 {[%emt 0:04:58]} Nf5 {[%emt 0:01:24]} 19. d4 {[%emt 0:06:44]} c5 {[%emt 0:01:19]} 20. Bd2 {[%emt 0:02:41]} b5 {[%emt 0:00:52]} 21. Rac1 {[%emt 0:00:31]} Bb7 {[%emt 0:00:30]} 22. Rc2 {[%emt 0:02:16]} Rac8 {[%emt 0:00:07]} 23. Rec1 {[%emt 0:00:34]} Qb6 {[%emt 0:01:03]} 24. Be3 {[%emt 0:04:31]} c4 {[%emt 0:00:42]} 25. Bd2 {[%emt 0:00:38]} a5 {[%emt 0:00:04]} 26. Be1 {[%emt 0:00:21]} Ba6 {[%emt 0:00:33]} 27. Nh2 {[%emt 0:00:37]} b4 {[%emt 0:00:17]} 28. f3 {[%emt 0:00:28]} b3 {[%emt 0:00:22]} 29. Rd2 {[%emt 0:00:52]} bxa2 {[%emt 0:02:13]} 30. g4 {[%emt 0:04:14]} Ng7 {[%emt 0:04:19]} 31. Ra1 {[%emt 0:03:19]} Rb8 {[%emt 0:01:49]} 32. Rxa2 {[%emt 0:01:41]} Qc7 {[%emt 0:00:17]} 33. f4 {[%emt 0:04:56]} Rb5 {[%emt 0:01:12]} 34. Bf3 {[%emt 0:00:30]} hxg4 {[%emt 0:01:04]} 35. Nxg4 {[%emt 0:00:31]} Nh5 {[%emt 0:00:56]} 36. Nh6+ {[%emt 0:00:33]} Kg7 {[%emt 0:00:36]} 37. Bxh5 {[%emt 0:00:55]} Kxh6 {[%emt 0:00:23]} 38. Bf3 {[%emt 0:05:29]} Rg8 {[%emt 0:03:05]} 39. Bf2 {[%emt 0:00:43]} Qe7 {[%emt 0:01:46]} 40. Qe1 {[%emt 0:00:00]} f6 {[%emt 0:00:00]} 41. Be3 {[%emt 0:06:22]} f5 {[%emt 0:01:56]} 42. Bf2 {[%emt 0:01:07]} Bb7 {[%emt 0:00:26]} 43. Kf1 {[%emt 0:00:45]} Bc6 {[%emt 0:00:34]} 44. Ke2 {[%emt 0:00:20]} Rgb8 {[%emt 0:01:00]} 45. Qh1 {[%emt 0:00:46]} Be8 {[%emt 0:00:28]} 46. Ke3 {[%emt 0:01:22]} a4 {[%emt 0:04:38]} 47. Qa1 {[%emt 0:02:02]} Ra5 {[%emt 0:00:45]} 48. Bg3 {[%emt 0:01:19]} Rba8 {[%emt 0:00:32]} 49. Rh2 {[%emt 0:02:23]} a3 {[%emt 0:02:06]} 50. Qh1 {[%emt 0:01:47]} axb2 {[%emt 0:02:02]} 51. h5 {[%emt 0:04:28]} g5 {[%emt 0:00:11]} 52. Raxb2 {[%emt 0:02:29]} Qa3 {[%emt 0:00:33]} 53. Rhc2 {[%emt 0:01:39]} g4 {[%emt 0:00:22]} 54. Bd1 {[%emt 0:04:10]} Qa1 {[%emt 0:01:12]} 55. Qe1 {[%emt 0:06:14]} Ra2 {[%emt 0:03:33]} 56. Qd2 {[%emt 0:00:32]} Rxb2 {[%emt 0:00:27]} 57. Rxb2 {[%emt 0:00:35]} Ra3 {[%emt 0:00:38]} 58. Bxg4 {[%emt 0:01:30]} Qg1+ {[%emt 0:01:03]} 59. Kf3 {[%emt 0:01:27]} fxg4+ {[%emt 0:00:38]} 60. Kxg4 {[%emt 0:00:49]} Bxh5+ {[%emt 0:00:29]} 61. Kh4 {[%emt 0:04:27]} Qd1 {[%emt 0:01:21]} 62. Qe3 {[%emt 0:02:20]} Qg4# 0-1

[Event "21st Sants Open 2019"]
[Site "Cotxeres de Sants"]
[Date "2019.08.24"]
[Round "2.20"]
[White "Moreby, Kurt"]
[Black "Rodoreda Pares, Marc"]
[Result "1/2-1/2"]
[ECO "D05"]
[WhiteElo "1638"]
[BlackElo "1493"]
[Annotator "NA"]
[PlyCount "44"]
[EventDate "2019.08.22"]
[EventType "swiss"]
[EventCountry "ESP"]
[SourceTitle "playchess.com"]
[Source "ChessBase"]
[SourceQuality "1"]
[TimeControl "40/5400+30:1800+30"]

1. d4 {[%emt 0:00:00]} d5 {[%emt 0:00:00]} 2. e3 {[%emt 0:00:00]} e6 {[%emt 0:00:14]} 3. Nf3 {[%emt 0:00:00]} Nf6 {[%emt 0:00:43]} 4. Bd3 {[%emt 0:00:10]} c5 {[%emt 0:02:42]} 5. b3 {[%emt 0:02:33]} Nc6 {[%emt 0:02:19]} 6. O-O {[%emt 0:00:08]} cxd4 {[%emt 0:03:19]} 7. exd4 {[%emt 0:03:20]} Bd6 {[%emt 0:00:48]} 8. Re1 {[%emt 0:01:05]} O-O {[%emt 0:07:37]} 9. Bb2 {[%emt 0:03:28]} a5 {[%emt 0:02:40]} 10. Nbd2 {[%emt 0:00:46]} a4 {[%emt 0:04:50]} 11. a3 {[%emt 0:00:12]} axb3 {[%emt 0:03:49]} 12. cxb3 {[%emt 0:01:58]} b6 {[%emt 0:03:39]} 13. b4 {[%emt 0:05:46]} Bd7 {[%emt 0:06:21]} 14. Rc1 {[%emt 0:03:13]} Na7 {[%emt 0:02:48]} 15. Qe2 {[%emt 0:04:57]} Rc8 16. Ne5 {[%emt 0:00:23]} Rxc1 {[%emt 0:03:49]} 17. Rxc1 {[%emt 0:04:38]} Qe7 {[%emt 0:11:57]} 18. Ndf3 {[%emt 0:06:12]} Rc8 {[%emt 0:03:28]} 19. Ng5 {[%emt 0:00:13]} Rxc1+ {[%emt 0:00:45]} 20. Bxc1 {[%emt 0:01:19]} Be8 {[%emt 0:07:40]} 21. Qc2 {[%emt 0:08:56]} h6 {[%emt 0:06:00]} 22. Ngf3 Qc7 1/2-1/2

[Event "21st Sants Open 2019"]
[Site "Cotxeres de Sants"]
[Date "2019.08.25"]
[Round "3.2"]
[White "Horton, Andrew P"]
[Black "Vaibhav, Suri"]
[Result "1/2-1/2"]
[ECO "A14"]
[WhiteElo "2382"]
[BlackElo "2591"]
[Annotator "ChessBase"]
[PlyCount "142"]
[EventDate "2019.08.22"]
[EventType "swiss"]
[EventCountry "ESP"]
[SourceTitle "playchess.com"]
[Source "ChessBase"]
[SourceQuality "1"]
[TimeControl "40/5400+30:1800+30"]

1. Nf3 {[%emt 0:00:00]} Nf6 {[%emt 0:00:08]} 2. c4 {[%emt 0:00:00]} e6 {[%emt 0:00:14]} 3. g3 {[%emt 0:00:00]} d5 {[%emt 0:00:07]} 4. Bg2 {[%emt 0:00:05]} Be7 {[%emt 0:00:06]} 5. O-O {[%emt 0:00:10]} O-O {[%emt 0:00:05]} 6. b3 {[%emt 0:00:23]} d4 {[%emt 0:01:44]} 7. e3 {[%emt 0:01:30]} c5 {[%emt 0:00:06]} 8. Bb2 {[%emt 0:00:33]} Nc6 {[%emt 0:00:29]} 9. exd4 {[%emt 0:00:11]} cxd4 {[%emt 0:00:06]} 10. Re1 {[%emt 0:00:06]} Re8 {[%emt 0:00:21]} 11. d3 {[%emt 0:03:46]} Bc5 {[%emt 0:00:19]} 12. Ne5 {[%emt 0:02:50]} Nxe5 {[%emt 0:00:10]} 13. Rxe5 {[%emt 0:00:02]} Qd6 {[%emt 0:00:10]} 14. Re1 {[%emt 0:05:44]} e5 {[%emt 0:07:57]} 15. a3 {[%emt 0:13:13]} Bg4 {[%emt 0:24:16]} 16. Bf3 {[%emt 0:23:11]} Bxf3 {[%emt 0:05:32]} 17. Qxf3 {[%emt 0:00:03]} a5 {[%emt 0:00:13]} 18. Bc1 {[%emt 0:07:53]} Rab8 {[%emt 0:14:32]} 19. Nd2 {[%emt 0:04:22]} Re6 {[%emt 0:11:13]} 20. Ra2 {[%emt 0:06:31]} h6 {[%emt 0:00:38]} 21. Ne4 {[%emt 0:11:49]} Nxe4 {[%emt 0:01:55]} 22. Qxe4 {[%emt 0:00:02]} b5 {[%emt 0:01:17]} 23. Bd2 {[%emt 0:03:42]} bxc4 {[%emt 0:04:34]} 24. bxc4 {[%emt 0:00:01]} a4 {[%emt 0:00:21]} 25. Bb4 {[%emt 0:01:36]} Bxb4 {[%emt 0:13:54]} 26. axb4 {[%emt 0:00:02]} Rxb4 {[%emt 0:00:51]} 27. Qa8+ {[%emt 0:00:31]} Qf8 {[%emt 0:01:01]} 28. Rxa4 {[%emt 0:01:11]} Qxa8 {[%emt 0:00:09]} 29. Rxa8+ {[%emt 0:00:02]} Kh7 {[%emt 0:00:00]} 30. Ra5 {[%emt 0:03:33]} f6 {[%emt 0:01:06]} 31. Ra2 {[%emt 0:08:30]} Rb3 {[%emt 0:00:29]} 32. Rd1 {[%emt 0:00:11]} Kg6 {[%emt 0:01:50]} 33. Rc2 {[%emt 0:00:50]} Kf5 {[%emt 0:00:29]} 34. Kf1 {[%emt 0:00:57]} g5 {[%emt 0:05:26]} 35. h3 {[%emt 0:00:14]} h5 {[%emt 0:00:03]} 36. Ra2 {[%emt 0:00:48]} Reb6 {[%emt 0:00:47]} 37. Rc2 {[%emt 0:00:31]} Ra6 {[%emt 0:00:46]} 38. Ke2 {[%emt 0:00:42]} Raa3 {[%emt 0:00:41]} 39. Rcd2 {[%emt 0:01:17]} Ra4 {[%emt 0:04:33]} 40. Rc1 {[%emt 0:00:00]} Raa3 {[%emt 0:00:00]} 41. Rcd1 {[%emt 0:02:14]} g4 {[%emt 0:10:23]} 42. hxg4+ {[%emt 0:01:10]} hxg4 {[%emt 0:00:01]} 43. Ke1 {[%emt 0:13:11]} Kg5 {[%emt 0:05:18]} 44. Kf1 {[%emt 0:03:22]} Kg6 {[%emt 0:06:03]} 45. Kg2 {[%emt 0:05:27]} Kf5 {[%emt 0:00:05]} 46. Kf1 {[%emt 0:00:24]} Ke6 {[%emt 0:01:55]} 47. Ke2 {[%emt 0:01:33]} f5 {[%emt 0:00:53]} 48. Kf1 {[%emt 0:01:57]} Kf6 {[%emt 0:04:52]} 49. Kg2 {[%emt 0:00:45]} Ke6 {[%emt 0:02:31]} 50. Kf1 {[%emt 0:00:43]} Kd6 {[%emt 0:00:25]} 51. Kg2 {[%emt 0:03:28]} f4 {[%emt 0:02:47]} 52. gxf4 {[%emt 0:00:08]} exf4 {[%emt 0:00:01]} 53. Kh2 {[%emt 0:03:41]} Rb8 {[%emt 0:00:18]} 54. Re1 {[%emt 0:00:48]} Rh8+ {[%emt 0:00:01]} 55. Kg2 {[%emt 0:00:21]} Rh3 {[%emt 0:00:50]} 56. Rb2 {[%emt 0:01:14]} Raxd3 {[%emt 0:01:33]} 57. Rb5 {[%emt 0:00:18]} f3+ {[%emt 0:00:37]} 58. Kg1 {[%emt 0:00:03]} Rh7 {[%emt 0:00:38]} 59. Ra1 {[%emt 0:00:29]} Rc7 {[%emt 0:00:57]} 60. Ra6+ {[%emt 0:01:01]} Rc6 {[%emt 0:00:25]} 61. Rd5+ {[%emt 0:00:27]} Kc7 {[%emt 0:00:00]} 62. Rxc6+ {[%emt 0:00:33]} Kxc6 {[%emt 0:00:01]} 63. Kh2 {[%emt 0:00:01]} Rd1 {[%emt 0:01:28]} 64. Kg3 {[%emt 0:00:03]} Rg1+ {[%emt 0:00:36]} 65. Kf4 {[%emt 0:00:03]} d3 {[%emt 0:00:06]} 66. Rxd3 Kc5 67. Rd8 {[%emt 0:00:44]} Rg2 {[%emt 0:00:59]} 68. Rg8 {[%emt 0:01:18]} Rxf2 {[%emt 0:00:01]} 69. Rxg4 {[%emt 0:00:06]} Rg2 {[%emt 0:00:01]} 70. Kxf3 {[%emt 0:00:09]} Rxg4 {[%emt 0:00:02]} 71. Kxg4 {[%emt 0:00:08]} Kxc4 {[%emt 0:00:01]} 1/2-1/2

[Event "21st Sants Open 2019"]
[Site "Cotxeres de Sants"]
[Date "2019.08.25"]
[Round "3.3"]
[White "Idani, Pouya"]
[Black "Melia, Salome"]
[Result "1/2-1/2"]
[ECO "E25"]
[WhiteElo "2581"]
[BlackElo "2376"]
[Annotator "ChessBase"]
[PlyCount "89"]
[EventDate "2019.08.22"]
[EventType "swiss"]
[EventCountry "ESP"]
[SourceTitle "playchess.com"]
[Source "ChessBase"]
[SourceQuality "1"]
[TimeControl "40/5400+30:1800+30"]

1. d4 {[%emt 0:00:00]} Nf6 {[%emt 0:00:28]} 2. c4 {[%emt 0:00:00]} e6 {[%emt 0:00:03]} 3. Nc3 {[%emt 0:00:00]} Bb4 {[%emt 0:00:20]} 4. f3 {[%emt 0:00:00]} d5 {[%emt 0:04:46]} 5. a3 {[%emt 0:00:08]} Bxc3+ {[%emt 0:00:49]} 6. bxc3 {[%emt 0:00:06]} c5 {[%emt 0:00:13]} 7. cxd5 {[%emt 0:00:04]} Nxd5 {[%emt 0:01:37]} 8. dxc5 {[%emt 0:00:05]} f5 {[%emt 0:04:32]} 9. Nh3 {[%emt 0:00:04]} Qa5 {[%emt 0:05:17]} 10. e4 {[%emt 0:00:06]} fxe4 {[%emt 0:01:09]} 11. Nf2 {[%emt 0:00:05]} Nf6 {[%emt 0:07:10]} 12. fxe4 {[%emt 0:10:21]} O-O {[%emt 0:00:10]} 13. Qd4 {[%emt 0:11:47]} Na6 {[%emt 0:17:24]} 14. Be3 {[%emt 0:14:01]} e5 {[%emt 0:03:05]} 15. Qxe5 {[%emt 0:03:56]} Re8 {[%emt 0:01:09]} 16. Qd4 {[%emt 0:07:35]} Be6 {[%emt 0:13:01]} 17. Bc4 {[%emt 0:00:59]} Nxc5 {[%emt 0:00:57]} 18. O-O {[%emt 0:01:51]} Kh8 {[%emt 0:05:47]} 19. Qxc5 {[%emt 0:04:44]} Qxc5 {[%emt 0:00:28]} 20. Bxc5 {[%emt 0:00:05]} Bxc4 {[%emt 0:00:04]} 21. Rfe1 {[%emt 0:00:04]} Nd7 {[%emt 0:05:12]} 22. Bd4 {[%emt 0:04:35]} Ne5 {[%emt 0:00:15]} 23. Re3 {[%emt 0:02:18]} Nc6 {[%emt 0:06:27]} 24. Rg3 {[%emt 0:03:23]} Re7 {[%emt 0:00:06]} 25. Be3 {[%emt 0:06:15]} Rd7 {[%emt 0:01:39]} 26. Rg5 {[%emt 0:01:14]} Re8 {[%emt 0:01:58]} 27. Rc5 {[%emt 0:00:46]} Bf7 {[%emt 0:03:12]} 28. Bf4 {[%emt 0:00:17]} h6 {[%emt 0:01:45]} 29. a4 {[%emt 0:02:44]} Bg6 {[%emt 0:05:12]} 30. Re1 {[%emt 0:01:25]} Rde7 {[%emt 0:02:05]} 31. e5 {[%emt 0:00:05]} Nd8 {[%emt 0:01:31]} 32. Bg3 {[%emt 0:04:21]} Ne6 {[%emt 0:00:16]} 33. Rc4 {[%emt 0:00:15]} Rd7 {[%emt 0:01:20]} 34. Rd1 {[%emt 0:02:01]} Rxd1+ {[%emt 0:03:09]} 35. Nxd1 {[%emt 0:00:05]} Rd8 {[%emt 0:00:28]} 36. Ne3 {[%emt 0:00:12]} Rd3 {[%emt 0:02:45]} 37. Kf2 {[%emt 0:01:58]} Rd2+ {[%emt 0:01:57]} 38. Ke1 {[%emt 0:00:22]} Rd3 {[%emt 0:00:15]} 39. Rc8+ {[%emt 0:01:38]} Kh7 {[%emt 0:00:01]} 40. Ke2 {[%emt 0:00:00]} Rd7 {[%emt 0:00:00]} 41. Nc4 {[%emt 0:06:43]} Be4 {[%emt 0:05:45]} 42. Nd6 {[%emt 0:03:47]} Bxg2 {[%emt 0:01:54]} 43. a5 {[%emt 0:00:52]} a6 {[%emt 0:01:12]} 44. c4 {[%emt 0:02:53]} Rd8 {[%emt 0:02:55]} 45. Rxd8 {[%emt 0:01:24]} 1/2-1/2

[Event "21st Sants Open 2019"]
[Site "Cotxeres de Sants"]
[Date "2019.08.25"]
[Round "3.4"]
[White "Nogerbek, Kazybek"]
[Black "Henriquez Villagra, Cristobal"]
[Result "1/2-1/2"]
[ECO "B10"]
[WhiteElo "2375"]
[BlackElo "2562"]
[Annotator "ChessBase"]
[PlyCount "69"]
[EventDate "2019.08.22"]
[EventType "swiss"]
[EventCountry "ESP"]
[SourceTitle "playchess.com"]
[Source "ChessBase"]
[SourceQuality "1"]
[TimeControl "40/5400+30:1800+30"]

1. e4 {[%emt 0:00:00]} c6 {[%emt 0:00:00]} 2. Nf3 {[%emt 0:00:00]} d5 {[%emt 0:00:00]} 3. exd5 {[%emt 0:00:06]} cxd5 {[%emt 0:00:00]} 4. Ne5 {[%emt 0:00:08]} Qb6 {[%emt 0:01:20]} 5. d4 {[%emt 0:02:10]} Nc6 {[%emt 0:00:54]} 6. c3 {[%emt 0:01:07]} Bf5 {[%emt 0:16:08]} 7. Qb3 {[%emt 0:03:44]} f6 {[%emt 0:10:08]} 8. Nd3 {[%emt 0:05:04]} Qxb3 {[%emt 0:03:33]} 9. axb3 {[%emt 0:00:14]} e5 {[%emt 0:00:16]} 10. dxe5 {[%emt 0:01:34]} fxe5 {[%emt 0:00:05]} 11. b4 {[%emt 0:00:52]} Bd6 {[%emt 0:02:21]} 12. b5 {[%emt 0:02:24]} Nce7 {[%emt 0:06:55]} 13. Be3 {[%emt 0:00:48]} Nf6 {[%emt 0:00:59]} 14. Rxa7 {[%emt 0:09:48]} Rxa7 {[%emt 0:01:32]} 15. Bxa7 {[%emt 0:00:07]} Kd7 {[%emt 0:00:16]} 16. Na3 {[%emt 0:02:26]} Bxd3 {[%emt 0:05:52]} 17. Bxd3 {[%emt 0:00:21]} Ra8 {[%emt 0:00:10]} 18. b6 {[%emt 0:03:40]} Bxa3 {[%emt 0:04:50]} 19. bxa3 {[%emt 0:00:18]} Nc8 {[%emt 0:01:06]} 20. Kd2 {[%emt 0:03:09]} Nxa7 {[%emt 0:00:54]} 21. bxa7 {[%emt 0:00:08]} Rxa7 {[%emt 0:00:08]} 22. a4 {[%emt 0:01:16]} Kc7 {[%emt 0:04:44]} 23. Bc2 {[%emt 0:00:46]} g6 {[%emt 0:06:30]} 24. f3 {[%emt 0:01:43]} Ra6 {[%emt 0:00:51]} 25. Rb1 {[%emt 0:01:25]} Rb6 {[%emt 0:07:20]} 26. Rb4 {[%emt 0:00:45]} g5 {[%emt 0:04:34]} 27. a5 {[%emt 0:02:14]} Ra6 {[%emt 0:01:57]} 28. Rb5 {[%emt 0:01:27]} b6 {[%emt 0:00:07]} 29. axb6+ {[%emt 0:00:08]} Rxb6 {[%emt 0:00:04]} 30. Ra5 {[%emt 0:00:28]} Kd6 {[%emt 0:05:05]} 31. Ra7 {[%emt 0:05:15]} h6 {[%emt 0:01:43]} 32. Rg7 {[%emt 0:02:14]} Kc5 {[%emt 0:02:34]} 33. Re7 {[%emt 0:00:27]} Kd6 {[%emt 0:00:05]} 34. Rg7 {[%emt 0:00:05]} Kc5 {[%emt 0:00:14]} 35. Re7 {[%emt 0:00:09]} 1/2-1/2

[Event "21st Sants Open 2019"]
[Site "Cotxeres de Sants"]
[Date "2019.08.25"]
[Round "3.5"]
[White "Hillarp Persson, Tiger"]
[Black "Lopez Gonzalez, Abel Fabian"]
[Result "0-1"]
[ECO "A06"]
[WhiteElo "2558"]
[BlackElo "2370"]
[Annotator "ChessBase"]
[PlyCount "74"]
[EventDate "2019.08.22"]
[EventType "swiss"]
[EventCountry "ESP"]
[SourceTitle "playchess.com"]
[Source "ChessBase"]
[SourceQuality "1"]
[TimeControl "40/5400+30:1800+30"]

1. Nf3 d5 2. d3 c5 3. g3 Nc6 4. Bg2 e5 5. O-O h6 6. a3 Be6 7. Nbd2 Qc7 8. c4 Nf6 9. cxd5 Nxd5 10. e3 Be7 11. Qc2 Rc8 12. b3 O-O 13. Bb2 Rfd8 14. Rac1 f6 15. Qb1 Qd7 16. Rfe1 Nc7 17. Bf1 Bf8 18. Ba1 Qf7 19. h3 Qd7 20. Kh2 Bf5 21. Ne4 Ne6 22. d4 Kh8 23. dxe5 Nxe5 24. Bxe5 fxe5 25. Bg2 Qc7 26. Red1 Be7 27. h4 b5 28. Bh3 Bxh3 29. Kxh3 Rf8 30. Kg2 c4 31. bxc4 Bxa3 32. Rc2 Qf7 33. Nfd2 bxc4 34. Rxc4 Rb8 35. Qa1 Bb4 36. Qxe5 Bxd2 37. Rxd2 Qf3+ 0-1

[Event "21st Sants Open 2019"]
[Site "Cotxeres de Sants"]
[Date "2019.08.25"]
[Round "3.6"]
[White "Hernandez, Cristian Andres"]
[Black "Puranik, Abhimanyu"]
[Result "0-1"]
[ECO "A05"]
[WhiteElo "2362"]
[BlackElo "2550"]
[Annotator "ChessBase"]
[PlyCount "78"]
[EventDate "2019.08.22"]
[EventType "swiss"]
[EventCountry "ESP"]
[SourceTitle "playchess.com"]
[Source "ChessBase"]
[SourceQuality "1"]
[TimeControl "40/5400+30:1800+30"]

1. Nf3 Nf6 2. c4 g6 3. Nc3 d5 4. cxd5 Nxd5 5. Qb3 Nb6 6. d4 Bg7 7. Bf4 Be6 8. Qa3 c5 9. d5 Nxd5 10. Rd1 Bxc3+ 11. bxc3 Qb6 12. Bh6 Nc6 13. e4 Nf6 14. Ng5 Ng4 15. Nxe6 fxe6 16. Bc1 O-O 17. f3 c4 18. Rd2 Nge5 19. Rb2 Qc7 20. Qa4 Na5 21. Rb5 b6 22. Qc2 Rad8 23. Rxe5 Qxe5 24. Be3 b5 25. Be2 Nb7 26. O-O Nc5 27. Rb1 a6 28. Bf1 Rd7 29. Be2 Nd3 30. Rd1 Rfd8 31. Rb1 a5 32. Kh1 Rc8 33. a3 Rb8 34. Rd1 Rbd8 35. Rb1 Qd6 36. Rxb5 Qxa3 37. h4 Ne1 38. Qc1 Qxc1 39. Bxc1 Rd1 0-1

[Event "21st Sants Open 2019"]
[Site "Cotxeres de Sants"]
[Date "2019.08.25"]
[Round "3.7"]
[White "Antal, Gergely"]
[Black "Dedebas, Emre Emin"]
[Result "1/2-1/2"]
[ECO "C26"]
[WhiteElo "2549"]
[BlackElo "2346"]
[Annotator "ChessBase"]
[PlyCount "119"]
[EventDate "2019.08.22"]
[EventType "swiss"]
[EventCountry "ESP"]
[SourceTitle "playchess.com"]
[Source "ChessBase"]
[SourceQuality "1"]
[TimeControl "40/5400+30:1800+30"]

1. e4 {[%emt 0:00:00]} e5 {[%emt 0:00:00]} 2. Nc3 {[%emt 0:00:00]} Nf6 {[%emt 0:01:05]} 3. g3 {[%emt 0:00:00]} Bc5 {[%emt 0:01:27]} 4. Bg2 {[%emt 0:00:15]} O-O {[%emt 0:01:08]} 5. Nge2 {[%emt 0:01:13]} Re8 {[%emt 0:04:02]} 6. O-O {[%emt 0:01:02]} Nc6 {[%emt 0:02:03]} 7. d3 {[%emt 0:00:11]} Nd4 {[%emt 0:07:42]} 8. Nxd4 {[%emt 0:03:35]} Bxd4 {[%emt 0:06:04]} 9. h3 {[%emt 0:01:32]} c6 {[%emt 0:01:19]} 10. g4 {[%emt 0:08:39]} h6 {[%emt 0:14:45]} 11. Ne2 {[%emt 0:03:28]} Bc5 {[%emt 0:00:22]} 12. Ng3 {[%emt 0:05:44]} d5 {[%emt 0:04:20]} 13. Qf3 {[%emt 0:04:56]} dxe4 {[%emt 0:04:18]} 14. dxe4 {[%emt 0:00:03]} Nh7 {[%emt 0:01:30]} 15. Nf5 {[%emt 0:02:22]} Bxf5 {[%emt 0:07:47]} 16. exf5 {[%emt 0:00:19]} e4 {[%emt 0:04:28]} 17. Qb3 {[%emt 0:00:23]} Qc7 {[%emt 0:06:57]} 18. Re1 {[%emt 0:05:36]} Nf6 {[%emt 0:04:14]} 19. Be3 {[%emt 0:01:37]} Bxe3 {[%emt 0:03:03]} 20. Rxe3 {[%emt 0:01:46]} Re7 {[%emt 0:00:47]} 21. Rae1 {[%emt 0:02:26]} Rae8 {[%emt 0:00:07]} 22. R3e2 {[%emt 0:03:15]} Qa5 {[%emt 0:03:46]} 23. a3 {[%emt 0:06:11]} Qc7 {[%emt 0:06:11]} 24. Kf1 {[%emt 0:08:42]} Re5 {[%emt 0:05:53]} 25. Qg3 {[%emt 0:01:37]} Qb6 {[%emt 0:01:14]} 26. b3 {[%emt 0:02:04]} Qa6 {[%emt 0:01:36]} 27. a4 {[%emt 0:05:12]} e3 {[%emt 0:01:53]} 28. f3 {[%emt 0:10:05]} Qa5 {[%emt 0:01:57]} 29. f4 {[%emt 0:01:06]} Rc5 {[%emt 0:01:12]} 30. c4 {[%emt 0:06:20]} b5 {[%emt 0:00:19]} 31. cxb5 {[%emt 0:02:31]} cxb5 {[%emt 0:01:05]} 32. Rxe3 {[%emt 0:00:05]} Rxe3 {[%emt 0:02:19]} 33. Qxe3 {[%emt 0:00:02]} bxa4 {[%emt 0:00:04]} 34. bxa4 {[%emt 0:00:03]} Rc8 {[%emt 0:00:48]} 35. Qb3 {[%emt 0:08:28]} Qc5 {[%emt 0:00:21]} 36. Bf3 {[%emt 0:00:45]} Qd4 {[%emt 0:01:09]} 37. Qe3 {[%emt 0:03:39]} Qxa4 {[%emt 0:00:17]} 38. g5 {[%emt 0:00:35]} Re8 {[%emt 0:00:05]} 39. Qd2 {[%emt 0:00:26]} Rxe1+ {[%emt 0:01:21]} 40. Kxe1 {[%emt 0:00:00]} hxg5 {[%emt 0:00:00]} 41. fxg5 {[%emt 0:00:15]} Qh4+ {[%emt 0:05:30]} 42. Ke2 {[%emt 0:03:08]} Qc4+ 43. Qd3 {[%emt 0:00:06]} Qxd3+ {[%emt 0:11:55]} 44. Kxd3 {[%emt 0:00:02]} Nd7 {[%emt 0:02:18]} 45. Kd4 {[%emt 0:00:49]} Kf8 46. Bc6 Ke7 {[%emt 0:02:34]} 47. h4 {[%emt 0:00:35]} Nf8 {[%emt 0:06:12]} 48. Kd5 {[%emt 0:00:38]} Nh7 {[%emt 0:00:27]} 49. Ba4 {[%emt 0:00:28]} Nf8 {[%emt 0:03:51]} 50. Bb5 {[%emt 0:00:36]} Nh7 {[%emt 0:00:09]} 51. Kc6 {[%emt 0:01:46]} g6 {[%emt 0:01:33]} 52. Bd3 {[%emt 0:00:09]} gxf5 {[%emt 0:00:30]} 53. Bxf5 {[%emt 0:00:04]} Nf8 {[%emt 0:00:13]} 54. h5 {[%emt 0:00:12]} a5 {[%emt 0:00:44]} 55. Kb5 {[%emt 0:00:06]} Kd6 {[%emt 0:00:36]} 56. Kxa5 {[%emt 0:01:46]} Ke5 {[%emt 0:00:17]} 57. Bb1 {[%emt 0:00:08]} Kf4 {[%emt 0:00:20]} 58. g6 {[%emt 0:00:02]} fxg6 {[%emt 0:00:09]} 59. hxg6 {[%emt 0:00:02]} Nxg6 {[%emt 0:00:04]} 60. Bxg6 1/2-1/2